bitfinex/quotes_ETHUSD_20240922
["timestamp","ask_amount","ask_price","bid_price","bid_amount"]
[1727026913623,4.72397127,2590.0,2589.5,3.86173]
[1727026913873,0.85848213,2589.9,2589.5,3.86173]
[1727026914231,0.0666387,2589.8,2589.5,3.86173]
[1727026914592,3.861,2590.0,2589.5,3.86173]
[1727026914816,0.0666387,2589.7,2589.5,3.86173]
[1727026915124,0.0666387,2589.6,2589.5,3.86173]
[1727026915533,3.86065,2590.3,2589.8,3.86128]
[1727026915934,31.199025,2590.4,2589.8,3.86128]
[1727026915935,30.649025,2590.4,2589.9,3.86109]
[1727026916308,26.788575,2590.4,2590.0,3.861]
[1727026916509,26.788575,2590.4,2590.0,3.86089]
[1727026916710,23.0023,2590.4,2590.0,3.86089]
[1727026917333,26.86274,2590.4,2589.9,2.4785]
[1727026917543,23.0023,2590.4,2590.0,3.861]
[1727026918249,23.0023,2590.4,2590.0,7.722]
[1727026918473,23.0023,2590.4,2590.0,3.861]
[1727026919357,20.55,2590.4,2590.1,3.86078]
[1727026919942,20.55,2590.4,2589.9,2.55571461]
[1727026920144,20.55,2590.4,2589.9,2.4785]
[1727026920349,20.55,2590.4,2590.3,3.86055]
[1727026920653,20.55,2590.4,2590.2,3.86061]
[1727026920803,3.8606,2590.3,2589.8,2.2633]
[1727026921003,22.605,2590.4,2589.9,3.86107]
[1727026921903,26.46549,2590.4,2589.8,6.12451]
[1727026922104,3.86057,2590.3,2589.8,6.12451]
[1727026922306,22.605,2590.4,2589.9,3.86107]
[1727026922506,22.605,2590.4,2590.0,3.861]
[1727026922929,22.605,2590.4,2589.8,9.98572]
[1727026923139,2.646535,2590.3,2589.8,9.98572]
[1727026923340,2.646535,2590.3,2589.9,3.86114]
[1727026924345,0.06723121,2590.2,2589.9,3.86114]
[1727026924648,20.55,2590.4,2590.0,3.86098]
[1727026924950,24.41041,2590.4,2589.8,6.12447]
[1727026925156,2.50816816,2590.3,2589.8,10.06288819]
[1727026925308,2.50816816,2590.3,2589.8,9.98567]
[1727026925947,2.50816816,2590.3,2589.8,6.12447]
[1727026926660,6.36873816,2590.3,2589.8,6.12447]
[1727026927420,10.22939816,2590.3,2589.8,6.12447]
[1727026927662,9.04048382,2590.2,2589.8,3.86117]
[1727026927827,5.17977382,2590.2,2589.8,3.86117]
[1727026928038,0.06711273,2590.1,2589.8,3.86117]
[1727026930973,0.06711273,2590.1,2589.6,6.3021]
[1727026931183,0.06711273,2590.1,2589.0,3.34323643]
[1727026931184,2.4879,2589.7,2589.0,3.86238]
[1727026931461,2.4879,2589.7,2589.0,6.30298]
[1727026931761,0.06683488,2589.6,2589.2,3.86218]
[1727026932279,0.06683488,2589.6,2589.2,7.72429]
[1727026932567,0.06683488,2589.6,2589.2,3.86211]
[1727026933120,0.06683488,2589.6,2589.2,3.8621]
[1727026933621,3.92843488,2589.6,2589.0,10.16541]
[1727026933824,4.95619337,2589.6,2589.0,6.30296]
[1727026934138,3.86177,2589.5,2589.0,6.30296]
[1727026934539,0.06683488,2589.4,2589.0,10.16537]
[1727026934763,0.06683488,2589.4,2589.0,10.16538]
[1727026934957,4.88935849,2589.6,2589.0,6.30296]
[1727026935164,0.06683488,2589.3,2588.8,6.3033]
[1727026935333,0.06683488,2589.3,2588.8,2.4406]
[1727026936232,0.06683488,2589.3,2588.9,3.86255]
[1727026936626,3.86168,2589.6,2588.9,3.86255]
[1727026936823,0.06655694,2589.2,2589.0,3.86249]
[1727026937044,7.72336,2589.6,2589.0,3.86249]
[1727026937248,0.06655694,2589.1,2589.0,3.86249]
[1727026937476,0.69325476,2589.5,2589.0,3.86249]
[1727026937662,0.06655694,2589.1,2589.0,3.86249]
[1727026937880,0.69325476,2589.5,2589.0,3.86249]
[1727026938097,0.06655694,2589.1,2589.0,3.86249]
[1727026938303,4.55503476,2589.5,2588.9,3.86255]
[1727026938456,0.06655694,2589.1,2588.9,3.86255]
[1727026938956,0.06655694,2589.0,2588.9,3.86255]
[1727026939189,2.4029,2589.3,2588.9,3.86255]
[1727026939390,0.06655694,2589.0,2588.8,6.30333]
[1727026939572,3.18287262,2589.3,2588.8,6.30333]
[1727026939895,0.06655694,2588.9,2588.8,3.86273]
[1727026940059,7.04495262,2589.3,2588.8,3.86273]
[1727026940255,0.06655694,2588.9,2588.7,3.86284]
[1727026940562,0.06655694,2588.8,2588.7,3.86284]
[1727026940766,3.8622,2589.2,2588.7,7.7257]
[1727026940999,0.06655694,2588.8,2588.7,7.7257]
[1727026941183,5.03706441,2589.2,2588.7,7.7257]
[1727026941381,0.06655694,2588.8,2588.7,7.7257]
[1727026941573,2.4029,2589.6,2588.7,0.07725022]
[1727026941896,6.26464,2589.6,2589.1,3.86222]
[1727026942098,8.022225,2589.6,2589.1,6.16902]
[1727026943781,8.022225,2589.6,2589.1,3.86222]
[1727026944098,8.022205,2589.6,2589.1,3.86222]
[1727026944303,11.883935,2589.6,2589.1,3.86222]
[1727026944917,3.86175,2589.5,2589.1,3.86222]
[1727026945116,1.1883955,2589.4,2589.1,3.86222]
[1727026945322,11.883935,2589.6,2589.1,3.86222]
[1727026945635,3.86175,2589.5,2588.9,3.86249]
[1727026945840,3.86175,2589.5,2589.0,3.86247]
[1727026946657,2.4029,2589.6,2589.1,3.86232]
[1727026946792,3.8613,2589.8,2589.3,3.86203]
[1727026946995,5.16061644,2589.8,2589.3,3.86203]
[1727026947449,3.86147,2589.7,2589.3,3.86203]
[1727026947839,3.86147,2589.7,2589.2,2.491]
[1727026948416,3.86147,2589.7,2589.2,6.35319]
[1727026948617,7.72302,2589.7,2589.2,6.35319]
[1727026948914,5.00341364,2589.7,2589.2,6.35319]
[1727026949118,8.86494364,2589.7,2589.2,6.35319]
[1727026949358,5.00341364,2589.7,2589.3,3.86203]
[1727026949595,10.11959,2589.9,2589.4,3.86182]
[1727026949712,10.11955,2589.9,2589.4,3.86182]
[1727026949915,10.11956,2589.9,2589.4,3.86182]
[1727026950111,7.45,2590.2,2589.5,3.86173]
[1727026950318,2.3848,2590.1,2589.7,3.86144]
[1727026950518,6.24565,2590.1,2589.6,3.86159]
[1727026951319,10.10659,2590.1,2589.6,3.86159]
[1727026951946,10.10658,2590.1,2589.6,3.86159]
[1727026952121,6.24565,2590.1,2589.6,3.86159]
[1727026952318,6.63160717,2590.1,2589.6,3.86159]
[1727026952520,10.49257717,2590.1,2589.6,3.86159]
[1727026952758,6.63160717,2590.1,2589.6,3.86159]
[1727026953122,10.49254717,2590.1,2589.6,3.86159]
[1727026953431,6.63160717,2590.1,2589.6,3.86159]
[1727026954379,0.06640572,2590.0,2589.6,3.86159]
[1727026957679,3.92743572,2590.0,2589.5,3.86172]
[1727026957891,3.86118,2589.9,2589.5,3.86174]
[1727026958383,0.06669185,2589.8,2589.3,7.72385]
[1727026958954,0.06669185,2589.8,2589.4,3.86188]
[1727026959191,2.4943,2589.7,2589.4,3.86188]
[1727026959599,0.06669185,2589.6,2589.4,3.86188]
[1727026960895,0.06669185,2589.6,2589.5,3.86174]
[1727026961050,0.06669185,2589.6,2589.5,3.93897207]
[1727026961254,0.06669185,2589.6,2589.5,9.19764]
[1727026961694,20.55,2590.4,2590.2,3.86069]
[1727026962196,0.06446757,2590.3,2590.2,3.86069]
[1727026963956,0.06446757,2590.3,2590.2,6.15589]
[1727026964162,20.55,2590.4,2590.2,6.15589]
[1727026964163,20.55,2590.4,2590.3,3.86055]
[1727026965997,20.61498756,2590.4,2590.3,3.86055]
[1727026969927,20.61498756,2590.4,2590.2,6.15589]
[1727026969928,20.61498756,2590.4,2590.2,3.86063]
[1727026970134,22.67648632,2590.4,2590.0,3.86085]
[1727026970328,22.67648632,2590.4,2590.1,3.86082]
[1727026970513,22.67648632,2590.4,2589.9,3.86114]
[1727026970713,26.53696632,2590.4,2589.9,3.86114]
[1727026970976,3.26675263,2590.3,2589.9,3.86114]
[1727026971331,3.33178933,2590.3,2589.9,3.86114]
[1727026971537,7.19235933,2590.3,2589.9,3.86114]
[1727026971867,11.05299933,2590.3,2589.8,3.86129]
[1727026972516,2.2703,2590.2,2589.8,3.86129]
[1727026972812,2.2703,2590.2,2589.6,6.15668]
[1727026972813,1.39726837,2590.1,2589.6,7.72295]
[1727026973119,1.39726837,2590.1,2589.6,3.86147]
[1727026973436,1.39726837,2590.1,2589.8,3.86129]
[1727026976444,1.39726837,2590.1,2589.7,3.86141]
[1727026976947,1.39568362,2590.1,2589.7,3.86141]
[1727026977747,1.39568362,2590.1,2589.8,3.86128]
[1727026977907,0.06493844,2590.1,2589.8,3.86128]
[1727026980447,0.06493844,2590.1,2589.6,7.72298]
[1727026980620,0.06493844,2590.1,2589.7,3.86133]
[1727026981543,0.06493844,2590.1,2589.9,3.86114]
[1727026981847,0.06493844,2590.1,2589.6,0.07722394]
[1727026982007,0.06493844,2590.1,2590.0,3.861]
[1727026984166,0.06493844,2590.1,2589.9,3.86113]
[1727026984968,0.06493844,2590.1,2589.7,3.86134]
[1727026984969,0.29846228,2590.1,2589.7,3.86134]
[1727026985326,0.29846228,2590.1,2589.7,7.72271]
[1727026985532,0.29846228,2590.1,2589.7,3.86134]
[1727026985948,0.29846228,2590.1,2589.7,7.72271]
[1727026986171,0.29846228,2590.1,2589.7,3.86134]
[1727026986381,0.29846228,2590.1,2589.7,7.72271]
[1727026986569,0.29846228,2590.1,2589.7,3.86134]
[1727026987600,2.338,2589.9,2589.5,3.86163]
[1727026987785,2.338,2589.9,2589.6,3.86157]
[1727026987987,2.338,2589.9,2589.5,3.86163]
[1727026987988,0.06457814,2589.8,2589.5,3.86163]
[1727026988138,0.06457814,2589.8,2589.6,3.86159]
[1727026988343,0.06457814,2589.8,2589.6,3.86152]
[1727026990289,2.338,2589.7,2589.2,3.86208]
[1727026990439,2.338,2589.7,2589.3,3.86195]
[1727026990643,0.06447575,2589.6,2589.3,3.86195]
[1727026991899,0.06447575,2589.6,2589.4,3.86189]
[1727026993162,0.06447575,2589.6,2589.4,3.86182]
[1727026993360,0.06447575,2589.6,2589.4,3.8618]
[1727026995476,0.06447575,2589.6,2588.9,2.4465]
[1727026995477,0.32874911,2589.6,2588.9,2.4465]
[1727026995732,6.19983,2589.5,2589.0,3.86242]
[1727026996051,2.338,2589.3,2588.8,3.86271]
[1727026996324,2.338,2589.3,2589.0,3.86242]
[1727026996535,2.338,2589.3,2589.1,3.86223]
[1727026996680,0.06434877,2589.2,2589.1,3.86223]
[1727026997014,2.338,2589.3,2589.0,3.86242]
[1727026997222,0.06417264,2589.2,2589.0,3.86242]
[1727026997427,2.5718,2589.3,2588.9,3.86254]
[1727026997592,0.06417264,2589.2,2589.0,3.86247]
[1727026997792,2.5718,2589.3,2589.0,3.86247]
[1727026998122,0.06417264,2589.2,2589.0,3.86247]
[1727026998414,2.338,2589.3,2589.0,3.86247]
[1727026998602,0.06417264,2589.2,2589.0,3.86247]
[1727026998801,2.338,2589.3,2589.0,3.86247]
[1727026998973,0.06417264,2589.2,2589.0,3.86242]
[1727026999179,2.338,2589.3,2589.0,3.86242]
[1727026999378,0.06417264,2589.2,2589.0,3.8624]
[1727026999581,6.16963,2589.5,2589.0,7.7248]
[1727026999780,0.06417264,2589.4,2589.0,3.8624]
[1727027000978,0.06417264,2589.4,2589.0,7.7248]
[1727027001425,0.06417264,2589.4,2589.2,3.8621]
[1727027001610,0.06417264,2589.4,2589.0,2.3273]
[1727027001824,0.06417264,2589.4,2588.7,2.3273]
[1727027002212,3.86229,2589.2,2588.7,2.3273]
[1727027002426,0.06393091,2589.1,2588.7,6.19023]
[1727027002931,0.06393091,2589.1,2588.8,3.86278]
[1727027003284,3.86205,2589.3,2588.8,3.86278]
[1727027003490,0.06383255,2589.0,2588.7,3.86286]
[1727027003794,0.06383255,2588.9,2588.6,3.86299]
[1727027003993,6.14898,2589.1,2588.6,3.86299]
[1727027004327,0.06383255,2589.0,2588.6,3.86299]
[1727027005466,3.92632255,2589.0,2588.6,3.86299]
[1727027005760,0.06383255,2589.0,2588.6,3.86299]
[1727027006316,0.06383255,2589.0,2588.7,3.86289]
[1727027007132,0.06383255,2589.0,2588.6,3.86299]
[1727027008067,0.06383255,2589.0,2588.6,7.726]
[1727027009240,0.06383255,2589.0,2588.5,3.86323]
[1727027009241,3.92640255,2589.0,2588.5,3.86323]
[1727027010268,3.92640255,2589.0,2588.6,3.86308]
[1727027011481,3.92640255,2589.0,2588.6,3.86301]
[1727027011482,0.06383255,2589.0,2588.6,3.86301]
[1727027011768,0.06383255,2589.0,2588.8,6.27988]
[1727027012139,3.86212,2589.3,2588.9,3.86264]
[1727027012654,3.86212,2589.3,2588.8,2.4172]
[1727027012655,3.86212,2589.3,2588.8,6.27998]
[1727027014188,3.86212,2589.3,2588.8,3.86278]
[1727027014482,0.06376288,2589.2,2588.8,3.86278]
[1727027015075,0.06376288,2589.1,2588.8,3.86278]
[1727027015246,0.06376288,2589.1,2588.7,3.86292]
[1727027015426,0.06376288,2589.1,2588.8,3.86279]
[1727027015626,3.86212,2589.3,2588.8,3.86279]
[1727027015858,0.06376288,2589.2,2588.8,3.86279]
[1727027016071,3.86212,2589.3,2588.8,3.86279]
[1727027016367,0.06376288,2589.1,2588.8,3.86279]
[1727027016527,3.86212,2589.3,2588.8,3.86279]
[1727027017072,0.06376288,2589.2,2588.8,3.86279]
[1727027017433,3.86212,2589.3,2588.8,3.86279]
[1727027017733,2.2866,2589.1,2588.7,3.86283]
[1727027017931,2.2866,2589.1,2588.8,3.86277]
[1727027018375,0.06376288,2589.0,2588.8,3.86277]
[1727027019574,0.06376288,2589.0,2588.9,6.37689007]
[1727027019883,7.45,2589.5,2589.2,3.86206]
[1727027020080,2.2913,2589.8,2589.4,3.86189]
[1727027020237,2.2913,2589.8,2589.2,3.86205]
[1727027020238,6.1526,2589.8,2589.2,3.86205]
[1727027020435,6.1526,2589.8,2589.3,3.86196]
[1727027021661,6.1526,2589.8,2589.2,3.86205]
[1727027021870,3.86146,2589.7,2589.2,7.72414]
[1727027022180,2.2913,2589.5,2589.0,3.86241]
[1727027022363,3.8619,2589.4,2588.8,3.86271]
[1727027022577,8.6963344,2589.5,2588.9,3.86258]
[1727027022862,0.86963344,2589.4,2588.9,3.86258]
[1727027023037,4.73154344,2589.4,2588.9,3.86258]
[1727027023237,0.86963344,2589.4,2588.9,3.86258]
[1727027023534,6.36084,2589.3,2588.7,3.86293]
[1727027023739,6.36084,2589.3,2588.6,3.863]
[1727027023740,3.86237,2589.1,2588.6,7.72599]
[1727027024037,6.36084,2589.3,2588.6,3.86298]
[1727027024242,4.58534734,2589.2,2588.6,7.72598]
[1727027024680,4.58534734,2589.2,2588.6,3.86298]
[1727027024882,4.58534734,2589.2,2588.6,7.72599]
[1727027025588,4.58534734,2589.2,2588.7,3.86293]
[1727027026780,4.58534734,2589.2,2589.0,3.78917244]
[1727027026965,1.09461873,2589.1,2589.0,3.78917244]
[1727027027945,9.99892313,2589.1,2589.0,3.78917244]
[1727027028171,8.9043044,2589.1,2589.0,3.78917244]
[1727027028880,9.4543044,2589.1,2589.0,3.78917244]
[1727027029188,9.5181984,2589.1,2589.0,3.78917244]
[1727027031052,6.975034,2589.1,2589.0,3.78917244]
[1727027031342,8.38537957,2589.1,2589.0,3.78917244]
[1727027032646,7.83537957,2589.1,2589.0,3.78917244]
[1727027033159,2.562694,2589.1,2589.0,3.78917244]
[1727027034702,0.063894,2589.1,2589.0,3.78917244]
[1727027035047,11.31153,2589.7,2589.2,3.86206]
[1727027035337,0.06361533,2589.6,2589.2,3.86206]
[1727027036284,0.06361533,2589.6,2589.1,3.86232]
[1727027036449,0.06361533,2589.6,2589.1,3.86227]
[1727027036649,0.06361533,2589.6,2589.3,3.86194]
[1727027036879,6.3601,2589.8,2589.3,3.86194]
[1727027037184,0.0639514,2589.7,2589.3,3.86194]
[1727027037384,0.0639514,2589.7,2589.3,7.72391]
[1727027037547,6.3601,2589.8,2589.3,7.72391]
[1727027037982,0.0639514,2589.7,2589.3,7.72391]
[1727027038387,6.3601,2589.8,2589.3,7.72391]
[1727027038591,0.0639514,2589.6,2589.4,3.86182]
[1727027038946,2.4988,2589.8,2589.4,3.86182]
[1727027039174,0.06410298,2589.5,2589.4,3.86182]
[1727027039411,2.4988,2589.8,2589.4,3.86182]
[1727027039613,0.06410298,2589.5,2589.4,3.86182]
[1727027039817,2.4988,2589.8,2589.4,3.86182]
[1727027040019,0.06410298,2589.5,2589.3,3.862]
[1727027040191,6.36013,2589.8,2589.3,3.862]
[1727027040375,0.06410298,2589.4,2589.3,3.862]
[1727027040811,6.36013,2589.8,2589.3,3.862]
[1727027041014,0.06410298,2589.4,2589.3,3.862]
[1727027041220,6.36013,2589.8,2589.3,3.862]
[1727027041377,0.06410298,2589.7,2589.3,3.862]
[1727027041718,6.36013,2589.8,2589.3,3.862]
[1727027042072,0.06410298,2589.7,2589.3,3.862]
[1727027042306,6.36013,2589.8,2589.3,3.862]
[1727027042515,0.06410298,2589.6,2589.2,3.86205]
[1727027042722,3.86147,2589.7,2589.2,3.86205]
[1727027042918,0.06410298,2589.5,2589.2,3.86205]
[1727027043083,2.4988,2589.8,2589.3,3.86194]
[1727027043422,3.8798,2589.8,2589.3,3.86194]
[1727027043610,3.86171,2589.6,2589.1,6.30894]
[1727027043826,3.86177,2589.5,2589.0,7.65161244]
[1727027044110,2.51090298,2589.4,2589.0,7.65161244]
[1727027044293,6.37280298,2589.4,2589.0,3.78917244]
[1727027044499,2.51090298,2589.4,2589.0,7.65158244]
[1727027044825,6.37280298,2589.4,2589.0,3.78917244]
[1727027045178,6.37282298,2589.4,2589.0,3.78917244]
[1727027047288,2.51090298,2589.4,2589.0,7.65158244]
[1727027051532,2.51090298,2589.4,2589.0,3.78917244]
[1727027051740,6.37280298,2589.4,2589.0,3.78917244]
[1727027052601,7.39626028,2589.4,2589.0,3.78917244]
[1727027055556,3.53436028,2589.4,2589.0,3.78917244]
[1727027056115,7.39627028,2589.4,2589.0,3.78917244]
[1727027057330,6.37281298,2589.4,2589.0,3.78917244]
[1727027057733,2.51090298,2589.4,2589.0,3.78917244]
[1727027057927,2.51090298,2589.4,2589.0,7.65155244]
[1727027058144,0.06410298,2589.4,2589.1,3.86227]
[1727027058359,0.06410298,2589.4,2589.3,6.27634]
[1727027058658,2.294,2590.2,2589.8,3.86129]
[1727027058861,3.86085,2590.1,2589.7,3.86141]
[1727027059158,0.0613975,2589.9,2589.6,3.86157]
[1727027059384,0.0613975,2589.9,2589.7,3.86143]
[1727027063370,0.0613975,2589.9,2589.5,3.86163]
[1727027063776,0.0613975,2589.9,2589.6,3.86157]
[1727027064269,0.06146715,2589.8,2589.5,3.86163]
[1727027064579,3.86108,2590.0,2589.5,3.86163]
[1727027064737,0.06146715,2589.7,2589.5,3.86163]
[1727027064936,3.86108,2590.0,2589.5,3.86163]
[1727027065177,0.06146715,2589.6,2589.5,3.86163]
[1727027065361,3.86108,2590.0,2589.5,3.86163]
[1727027065563,0.06146715,2589.6,2589.3,10.1382]
[1727027065785,2.2501,2589.8,2589.3,6.27624]
[1727027065952,0.06146715,2589.5,2589.3,6.27624]
[1727027066271,6.11147,2589.8,2589.3,6.27624]
[1727027066782,0.06157775,2589.7,2589.3,6.27624]
[1727027067149,2.2501,2589.8,2589.4,3.86176]
[1727027067383,0.06157775,2589.6,2589.4,3.86176]
[1727027067683,2.2501,2589.8,2589.4,3.86176]
[1727027067895,0.06154908,2589.5,2589.4,3.86176]
[1727027068089,2.2501,2589.8,2589.4,3.86176]
[1727027068382,6.11141,2589.8,2589.3,6.27624]
[1727027068590,0.06154908,2589.7,2589.3,6.27624]
[1727027068943,6.11141,2589.8,2589.3,6.27624]
[1727027069153,0.06154908,2589.6,2589.2,3.86215]
[1727027069354,4.472691,2589.7,2589.2,6.21625]
[1727027069562,0.06154908,2589.5,2589.2,6.21625]
[1727027069755,4.472691,2589.7,2589.2,6.21625]
[1727027069756,3.86155,2589.7,2589.2,6.21625]
[1727027069961,0.06154908,2589.4,2589.2,6.21625]
[1727027070189,3.86155,2589.7,2589.2,6.21625]
[1727027070404,0.06154908,2589.3,2589.2,6.21625]
[1727027070702,3.86155,2589.7,2589.2,6.21625]
[1727027071026,23.55,2590.4,2589.5,6.21584]
[1727027071027,0.06154908,2589.6,2589.5,6.21584]
[1727027071506,3.0,2590.2,2589.8,7.72242]
[1727027071676,0.06158596,2590.1,2589.8,7.72242]
[1727027073034,0.06158596,2590.1,2589.8,7.72241]
[1727027073220,0.06158596,2590.1,2589.8,7.7224]
[1727027073391,0.06158596,2590.1,2589.8,3.8612]
[1727027074136,0.06158596,2590.1,2589.8,7.72243]
[1727027074286,1.10241386,2590.1,2589.8,3.8612]
[1727027076739,0.06158596,2590.1,2589.8,3.8612]
[1727027077105,3.86063,2590.3,2589.8,3.8612]
[1727027077301,0.06168836,2590.2,2589.9,3.86114]
[1727027077649,3.86063,2590.3,2589.9,3.86114]
[1727027077800,0.06172932,2590.1,2589.9,3.86114]
[1727027078001,7.18350444,2590.3,2589.9,3.86114]
[1727027078199,0.06172932,2590.0,2589.9,3.86114]
[1727027078423,3.86063,2590.3,2589.9,3.86114]
[1727027078638,0.06172932,2590.0,2589.9,3.86114]
[1727027078850,24.41041,2590.4,2589.9,3.86114]
[1727027079002,0.06172932,2590.0,2589.9,3.86114]
[1727027079208,24.41041,2590.4,2589.9,3.86114]
[1727027079555,0.06172932,2590.0,2589.9,3.86114]
[1727027079853,0.06176618,2590.3,2590.2,6.1382]
[1727027080009,20.55,2590.4,2590.2,6.1382]
[1727027080212,0.06176618,2590.3,2590.2,6.1382]
[1727027086056,0.06176618,2590.3,2590.2,2.2775]
[1727027086361,0.06176618,2590.3,2590.2,3.8607]
[1727027086719,0.06176618,2590.3,2590.1,3.86085]
[1727027087611,0.06176618,2590.3,2590.2,3.8607]
[1727027100273,0.06176618,2590.3,2590.1,3.86076]
[1727027100457,0.06176618,2590.3,2589.9,3.86107]
[1727027100458,2.1229428,2590.3,2589.9,3.86107]
[1727027101790,5.9834928,2590.3,2589.8,3.8613]
[1727027102970,5.9834928,2590.3,2589.9,3.86114]
[1727027103168,0.06176618,2590.3,2589.9,3.86114]
[1727027103393,0.06176618,2590.3,2590.2,3.8607]
[1727027105095,0.06176618,2590.3,2589.9,6.13063]
[1727027105396,0.06176618,2590.3,2589.7,2.2696]
[1727027105604,0.06176618,2590.3,2589.9,3.861]
[1727027105767,2.8593881,2590.3,2590.1,3.86084]
[1727027105956,2.8593881,2590.3,2590.0,3.86099]
[1727027107195,0.06176618,2590.3,2590.0,3.86099]
[1727027107598,0.06176618,2590.3,2590.1,2.2696]
[1727027107967,0.06176618,2590.3,2590.0,3.86086]
[1727027108182,2.3306,2590.2,2589.9,3.86114]
[1727027108652,0.06219785,2590.1,2589.9,3.86114]
[1727027109253,0.06219785,2590.1,2590.0,3.861]
[1727027111155,0.06219785,2590.1,2589.9,3.86113]
[1727027111357,0.30147764,2590.1,2589.6,6.13108]
[1727027112307,0.06219785,2590.1,2589.8,3.86127]
[1727027112461,0.06219785,2590.1,2589.9,3.86101]
[1727027112660,0.06219785,2590.1,2589.7,3.86133]
[1727027113001,0.06200135,2590.0,2589.9,3.86106]
[1727027113356,20.55,2590.4,2590.0,3.86085]
[1727027113580,0.06200135,2590.3,2590.1,3.8608]
[1727027113794,0.06200135,2590.3,2590.0,3.86085]
[1727027113994,0.06200135,2590.3,2590.0,7.72178]
[1727027114368,0.06200135,2590.3,2590.1,3.8608]
[1727027115058,0.06200135,2590.3,2590.2,3.8607]
[1727027119425,2.12320149,2590.3,2589.9,6.13066]
[1727027119627,2.4822,2590.2,2589.9,3.86106]
[1727027119928,2.4822,2590.2,2590.0,3.86095]
[1727027120129,0.06203002,2590.1,2590.0,3.86095]
[1727027121126,0.06203002,2590.1,2590.0,6.35025]
[1727027121421,20.55,2590.4,2590.2,3.86069]
[1727027123834,20.55,2590.4,2590.0,3.86095]
[1727027123835,22.85322,2590.4,2590.0,3.86095]
[1727027123986,2.3951,2590.3,2589.9,3.86108]
[1727027124502,6.25565,2590.3,2589.8,3.86128]
[1727027126116,10.11632,2590.3,2589.8,3.86128]
[1727027126315,6.25565,2590.3,2589.8,3.86128]
[1727027126646,20.55,2590.4,2590.0,3.86094]
[1727027126937,20.55,2590.4,2590.2,3.86063]
[1727027128992,20.55,2590.4,2590.0,3.86087]
[1727027129319,20.55,2590.4,2590.0,3.86089]
[1727027129320,23.230543,2590.4,2590.0,3.86089]
[1727027129539,23.230543,2590.4,2590.0,7.72178]
[1727027129861,6.25883,2590.3,2589.8,3.86117]
[1727027130168,6.25883,2590.3,2589.9,3.86114]
[1727027130862,6.25883,2590.3,2589.8,3.86117]
[1727027131062,13.4544383,2590.3,2589.8,3.86117]
[1727027131514,9.5937983,2590.3,2589.8,3.86117]
[1727027133862,3.86071,2590.2,2589.8,3.86117]
[1727027134058,2.3982,2590.0,2589.6,3.86149]
[1727027134556,0.06199725,2589.9,2589.7,3.86138]
[1727027136020,0.06199725,2589.9,2589.8,9.3104]
[1727027136220,0.06199725,2589.9,2589.8,11.45607347]
[1727027136531,20.55,2590.4,2590.3,3.86055]
[1727027136746,20.55,2590.4,2590.1,3.86075]
[1727027136747,20.60774964,2590.4,2590.2,3.86065]
[1727027137330,20.60774964,2590.4,2590.3,3.86055]
[1727027139273,20.60774964,2590.4,2590.2,3.86065]
[1727027139647,20.60774964,2590.4,2590.1,3.86081]
[1727027139648,22.6685246,2590.4,2590.1,3.86081]
[1727027140508,2.4622,2590.2,2589.8,3.86117]
[1727027140786,0.05797934,2590.1,2589.8,3.86117]
[1727027141140,0.05797934,2590.1,2589.3,2.4772]
[1727027141465,0.05797934,2590.1,2589.2,9.07085877]
[1727027141466,3.86131,2589.8,2589.2,9.07085877]
[1727027141640,3.86131,2589.8,2589.3,4.47238543]
[1727027141836,4.88556717,2589.8,2589.3,3.86204]
[1727027142076,0.05783168,2589.7,2589.3,3.86204]
[1727027142238,0.05783168,2589.7,2589.3,7.72408]
[1727027142438,4.88557717,2589.8,2589.3,3.86204]
[1727027142634,0.05783168,2589.6,2589.3,3.86204]
[1727027142879,4.88557717,2589.8,2589.3,3.86204]
[1727027143034,0.05783168,2589.5,2589.3,3.86204]
[1727027143238,3.86132,2589.8,2589.3,3.86204]
[1727027143479,0.05783168,2589.4,2589.3,3.86204]
[1727027143640,3.86132,2589.8,2589.3,3.86204]
[1727027143844,0.05783168,2589.4,2589.3,3.86204]
[1727027144137,0.05783168,2589.4,2589.3,3.86194]
[1727027144352,3.86133,2589.8,2589.3,3.86194]
[1727027144584,0.82988251,2589.7,2589.3,3.86194]
[1727027146680,0.05762651,2589.7,2589.3,3.86194]
[1727027147045,3.8613,2589.8,2589.3,3.86194]
[1727027147244,3.8977224,2590.8,2589.8,3.86127]
[1727027147245,20.55,2590.4,2589.8,3.86127]
[1727027147481,20.55,2590.4,2590.3,8.69337332]
[1727027147693,20.55,2590.4,2590.3,6.15005]
[1727027147875,20.55,2590.4,2590.2,3.86062]
[1727027148195,20.55,2590.4,2590.3,3.86055]
[1727027148426,20.55,2590.4,2590.1,3.86081]
[1727027148619,20.55,2590.4,2590.0,6.15035]
[1727027148817,20.55,2590.4,2590.0,3.86085]
[1727027149341,0.05025793,2590.3,2590.0,3.86085]
[1727027149627,0.05025793,2590.3,2590.1,3.86075]
[1727027150397,0.05025793,2590.3,2590.2,3.8607]
[1727027150692,20.55,2590.4,2590.3,9.25215]
[1727027150933,20.55,2590.4,2590.3,13.93768857]
[1727027151552,11.5501,2590.4,2590.3,14.88772459]
[1727027151698,0.0502,2590.4,2590.3,15.49619445]
[1727027151897,0.08885028,2590.4,2590.3,15.49397889]
[1727027152114,0.0378324,2590.8,2590.7,9.25156]
[1727027152313,0.0378324,2590.8,2590.7,11.79488332]
[1727027164115,0.0378324,2590.8,2590.7,12.34488332]
[1727027169779,0.00160398,2592.0,2590.7,12.34488332]
[1727027169780,0.00160398,2592.0,2591.4,8.83303332]
[1727027170099,0.00160398,2592.0,2591.4,11.83303332]
[1727027170439,0.00160398,2592.0,2591.4,12.38303332]
[1727027172371,0.00160292,2592.0,2591.4,12.38303332]
[1727027175289,0.00160292,2592.0,2591.9,9.10857]
[1727027175587,0.0378324,2592.3,2591.9,9.10857]
[1727027175588,0.0378324,2592.3,2592.2,3.85772]
[1727027175793,0.0378324,2592.3,2592.2,14.74476664]